fUST/lending_fUST_20251130
["ID","MTS","AMOUNT","RATE_DAILY","PERIOD"]
[395161145,1764495129562,-74.68124838,6.688e-05,2]
[395161146,1764495129582,-503.71882539,6.688e-05,2]
[395161147,1764495132316,-92.03796634,6.688e-05,2]
[395161148,1764495132340,-259.24849006,6.689e-05,2]
[395161151,1764495136547,-283.32739701,6.689e-05,2]
[395161152,1764495138637,-572.96145965,6.689e-05,2]
[395161154,1764495140853,-300.0,6.689e-05,2]
[395161158,1764495142565,-181.2278405,6.689e-05,2]
[395161159,1764495144577,-368.7721595,6.689e-05,2]
[395161160,1764495148160,-214.89179956,6.689e-05,2]
[395161162,1764495149652,-222.27234796,6.689e-05,2]
[395161163,1764495151254,214.89179956,6.622e-05,2]
[395161164,1764495151776,-156.46095011,6.689e-05,2]
[395161169,1764495154562,-303.50090823,6.689e-05,2]
[395161170,1764495156558,-380.39404586,6.689e-05,2]
[395161171,1764495158012,-327.04137802,6.689e-05,2]
[395161175,1764495173545,1639.66963018,6.622e-05,2]
[395161177,1764495245633,3072.30945167,6.622e-05,2]
[395161183,1764495313535,3746.79392178,6.629e-05,2]
[395161184,1764495313556,5202.79942882,6.629e-05,2]
[395161186,1764495318480,565.75722346,6.621e-05,2]
[395161188,1764495334204,474.00360644,6.621e-05,2]
[395161189,1764495373671,-1200.0,6.688e-05,2]
[395161190,1764495373698,-300.0,6.688e-05,2]
[395161191,1764495388925,-41.57168984,6.689e-05,2]
[395161192,1764495389081,-83.14337968,6.689e-05,2]
[395161193,1764495389255,-166.28675936,6.689e-05,2]
[395161194,1764495389447,-2432.1492634,6.689e-05,2]
[395161195,1764495389573,-2764.72278212,6.689e-05,2]
[395161196,1764495389610,-4470.56443576,6.689e-05,2]
[395161209,1764495406976,300.0,7.279e-05,2]
[395161222,1764495454586,-300.0,7.353e-05,2]
[395161227,1764495467255,-587.39575995,7.355e-05,2]
[395161228,1764495483962,-1680.0,7.357e-05,2]
[395161229,1764495507401,-1200.0,7.72e-05,2]
[395161230,1764495507430,-300.0,7.72e-05,2]
[395161231,1764495516951,-243.14339201,7.721e-05,2]
[395161232,1764495519076,-3.47081965,7.721e-05,2]
[395161233,1764495519106,-500.0,7.721e-05,2]
[395161234,1764495519133,-499.10262209,7.721e-05,2]
[395161235,1764495519162,-500.0,7.721e-05,2]
[395161236,1764495519188,-500.0,7.721e-05,2]
[395161237,1764495519219,-500.0,7.721e-05,2]
[395161238,1764495519247,-500.0,7.721e-05,2]
[395161239,1764495519275,-500.0,7.721e-05,2]
[395161240,1764495519304,-538.31349209,7.721e-05,2]
[395161241,1764495519330,-500.0,7.721e-05,2]
[395161242,1764495519361,-376.24199779,7.721e-05,2]
[395161243,1764495519528,-500.0,7.721e-05,2]
[395161244,1764495519733,-500.0,7.721e-05,2]
[395161245,1764495519764,-500.0,7.721e-05,2]
[395161246,1764495519790,-500.0,7.721e-05,2]
[395161247,1764495519817,-500.0,7.721e-05,2]
[395161248,1764495519844,-500.0,7.721e-05,2]
[395161249,1764495519871,-500.0,7.721e-05,2]
[395161250,1764495519899,-500.0,7.721e-05,2]
[395161251,1764495519926,-500.0,7.721e-05,2]
[395161252,1764495519953,-500.0,7.721e-05,2]
[395161253,1764495520096,-500.0,7.721e-05,2]
[395161254,1764495520123,-500.0,7.721e-05,2]
[395161255,1764495520150,-575.64174459,7.721e-05,2]
[395161256,1764495520177,-500.0,7.721e-05,2]
[395161257,1764495520206,-500.0,7.721e-05,2]
[395161258,1764495520240,-500.0,7.721e-05,2]
[395161259,1764495520268,-500.0,7.721e-05,2]
[395161260,1764495520294,-500.0,7.721e-05,2]
[395161261,1764495520320,-500.0,7.721e-05,2]
[395161262,1764495520346,-348.72651082,7.721e-05,2]
[395161263,1764495520396,-151.27348918,7.721e-05,2]
[395161264,1764495520423,-500.0,7.721e-05,2]
[395161265,1764495520449,-500.0,7.721e-05,2]
[395161266,1764495520475,-500.0,7.721e-05,2]
[395161267,1764495520502,-386.66222373,7.721e-05,2]
[395161268,1764495520530,-500.0,7.721e-05,2]
[395161269,1764495520557,-500.0,7.721e-05,2]
[395161270,1764495520584,-500.0,7.721e-05,2]
[395161271,1764495520610,-500.0,7.721e-05,2]
[395161272,1764495520638,-500.0,7.721e-05,2]
[395161273,1764495520665,-424.13857418,7.721e-05,2]
[395161274,1764495520721,-75.86142582,7.721e-05,2]
[395161275,1764495520747,-500.0,7.721e-05,2]
[395161276,1764495520773,-500.0,7.721e-05,2]
[395161277,1764495520799,-500.0,7.721e-05,2]
[395161278,1764495520827,-500.0,7.721e-05,2]
[395161279,1764495520854,-500.0,7.721e-05,2]
[395161280,1764495520880,-500.0,7.721e-05,2]
[395161281,1764495520907,-500.0,7.721e-05,2]
[395161282,1764495520934,-650.93713312,7.721e-05,2]
[395161283,1764495520961,-500.0,7.721e-05,2]
[395161284,1764495520987,-46.41288212,7.721e-05,2]
[395161285,1764495521118,-453.58711788,7.721e-05,2]
[395161286,1764495521147,-500.0,7.721e-05,2]
[395161287,1764495521175,-500.0,7.721e-05,2]
[395161288,1764495521201,-500.0,7.721e-05,2]
[395161289,1764495521232,-500.0,7.721e-05,2]
[395161290,1764495521259,-500.0,7.721e-05,2]
[395161291,1764495521288,-500.0,7.721e-05,2]
[395161292,1764495521314,-500.0,7.721e-05,2]
[395161293,1764495521345,-500.0,7.721e-05,2]
[395161294,1764495521372,-500.0,7.721e-05,2]
[395161295,1764495521854,-500.0,7.721e-05,2]
[395161296,1764495521885,-500.0,7.721e-05,2]
[395161297,1764495521913,-500.0,7.721e-05,2]
[395161298,1764495521940,-500.0,7.721e-05,2]
[395161299,1764495521968,-500.0,7.721e-05,2]
[395161300,1764495522001,-500.0,7.721e-05,2]
[395161301,1764495522027,-500.0,7.721e-05,2]
[395161302,1764495522075,-500.0,7.721e-05,2]
[395161303,1764495522103,-500.0,7.721e-05,2]
[395161304,1764495522130,-500.0,7.721e-05,2]
[395161305,1764495522281,-500.0,7.721e-05,2]
[395161306,1764495522308,-500.0,7.721e-05,2]
[395161307,1764495522335,-500.0,7.721e-05,2]
[395161308,1764495522362,-500.0,7.721e-05,2]
[395161309,1764495522388,-300.0,7.721e-05,2]
[395161310,1764495530970,251.41640589,7.646e-05,2]
[395161311,1764495534124,-314.53028088,7.723e-05,2]
[395161312,1764495542764,300.0,7.723e-05,2]
[395161313,1764495551020,-9448.59359411,7.724e-05,2]
[395161314,1764495551180,-10000.01,7.724e-05,2]
[395161315,1764495551362,-10000.01,7.724e-05,2]
[395161316,1764495551541,-10000.01,7.724e-05,2]
[395161317,1764495551791,-10000.01,7.724e-05,2]
[395161336,1764495651896,-179.17767833,7.571e-05,2]
[395161341,1764495759534,1697.27167038,7.495e-05,2]
[395161342,1764495775499,150.05109817,7.495e-05,2]
[395161343,1764495784530,-214.0,7.571e-05,2]
[395161344,1764495790507,1426.05025603,7.571e-05,2]
[395161345,1764495801746,-586.96298922,7.644e-05,2]
[395161346,1764495803677,8826.08402156,6.721e-05,2]
[395161347,1764495803700,10000.01,6.721e-05,2]
[395161348,1764495803722,9896.45954504,6.721e-05,2]
[395161349,1764495826329,1122.26905576,7.64e-05,2]
[395161350,1764495840726,458.04241404,7.471e-05,2]
[395161360,1764495877075,-199.30782552,7.717e-05,2]
[395161361,1764495878634,-194.48439031,7.717e-05,2]
[395161367,1764495923783,1910.53533769,7.616e-05,2]
[395161368,1764495954402,360.06824636,7.621e-05,2]
[395161369,1764495956789,640.12132687,7.621e-05,2]
[395161370,1764495959671,999.18938366,7.621e-05,2]
[395161378,1764495997438,-300.0,7.715e-05,2]
[395161379,1764495997460,-8.32992564,7.716e-05,2]
[395161381,1764496000575,-187.04828438,7.716e-05,2]
[395161382,1764496002060,-104.62178998,7.716e-05,2]
[395161383,1764496002081,-282.87650944,7.716e-05,2]
[395161384,1764496003460,-17.12349056,7.716e-05,2]
[395161385,1764496003480,-150.25176755,7.716e-05,2]
[395161387,1764496005090,-149.74823245,7.716e-05,2]
[395161388,1764496005113,-435.27001516,7.716e-05,2]
[395161389,1764496005228,-764.72998484,7.716e-05,2]
[395161390,1764496006620,-271.99651028,7.716e-05,2]
[395161391,1764496006642,-79.96847116,7.716e-05,2]
[395161392,1764496008679,-74.10510926,7.716e-05,2]
[395161393,1764496008702,-218.60633673,7.716e-05,2]
[395161394,1764496009868,276.48,0.00014,10]
[395161397,1764496022411,300.0,7.715e-05,2]
[395161398,1764496023301,-281.39366327,7.716e-05,2]
[395161399,1764496023329,-186.03428632,7.716e-05,2]
[395161400,1764496023360,-500.0,7.716e-05,2]
[395161401,1764496023391,-500.0,7.716e-05,2]
[395161402,1764496023420,-500.0,7.716e-05,2]
[395161403,1764496023448,-500.0,7.716e-05,2]
[395161404,1764496023476,-500.0,7.716e-05,2]
[395161405,1764496023504,-500.0,7.716e-05,2]
[395161406,1764496023532,-500.0,7.716e-05,2]
[395161407,1764496023559,-500.0,7.716e-05,2]
[395161408,1764496023587,-500.0,7.716e-05,2]
[395161409,1764496023784,-500.0,7.716e-05,2]
[395161410,1764496023815,-500.0,7.716e-05,2]
[395161411,1764496023846,-500.0,7.716e-05,2]
[395161412,1764496023875,-500.0,7.716e-05,2]
[395161413,1764496023905,-500.0,7.716e-05,2]
[395161414,1764496023934,-500.0,7.716e-05,2]
[395161415,1764496023963,-500.0,7.716e-05,2]
[395161416,1764496023992,-452.05090397,7.716e-05,2]
[395161417,1764496024021,-500.0,7.716e-05,2]
[395161418,1764496024049,-500.0,7.716e-05,2]
[395161419,1764496024232,-500.0,7.716e-05,2]
[395161420,1764496024260,-500.0,7.716e-05,2]
[395161421,1764496024288,-500.0,7.716e-05,2]
[395161422,1764496024318,-500.0,7.716e-05,2]
[395161423,1764496024347,-500.0,7.716e-05,2]
[395161424,1764496024376,-500.0,7.716e-05,2]
[395161425,1764496024409,-500.0,7.716e-05,2]
[395161426,1764496024438,-500.0,7.716e-05,2]
[395161427,1764496024467,-500.0,7.716e-05,2]
[395161428,1764496024496,-500.0,7.716e-05,2]
[395161429,1764496024589,-500.0,7.716e-05,2]
[395161430,1764496024744,-500.0,7.716e-05,2]
[395161431,1764496024774,-500.0,7.716e-05,2]
[395161432,1764496024802,-500.0,7.716e-05,2]
[395161433,1764496024830,-482.60043444,7.716e-05,2]
[395161434,1764496024858,-500.0,7.716e-05,2]
[395161435,1764496024886,-500.0,7.716e-05,2]
[395161436,1764496024913,-500.0,7.716e-05,2]
[395161437,1764496024942,-500.0,7.716e-05,2]
[395161438,1764496024970,-500.0,7.716e-05,2]
[395161439,1764496025182,-500.0,7.716e-05,2]
[395161440,1764496025212,-500.0,7.716e-05,2]
[395161441,1764496025240,-500.0,7.716e-05,2]
[395161442,1764496025267,-500.0,7.716e-05,2]
[395161443,1764496025295,-500.0,7.716e-05,2]
[395161444,1764496025323,-500.0,7.716e-05,2]
[395161445,1764496025352,-500.0,7.716e-05,2]
[395161446,1764496025383,-500.0,7.716e-05,2]
[395161447,1764496025415,-500.0,7.716e-05,2]
[395161448,1764496025443,-500.0,7.716e-05,2]
[395161449,1764496025607,-500.0,7.716e-05,2]
[395161450,1764496025637,-500.0,7.716e-05,2]
[395161451,1764496025667,-500.0,7.716e-05,2]
[395161452,1764496025697,-500.0,7.716e-05,2]
[395161453,1764496025724,-500.0,7.716e-05,2]
[395161454,1764496025752,-500.0,7.716e-05,2]
[395161455,1764496025782,-500.0,7.716e-05,2]
[395161456,1764496025809,-500.0,7.716e-05,2]
[395161457,1764496025838,-500.0,7.716e-05,2]
[395161458,1764496025865,-431.5518643,7.716e-05,2]
[395161459,1764496026185,-136.9062714,7.716e-05,2]
[395161460,1764496026213,-500.0,7.716e-05,2]
[395161461,1764496026241,-500.0,7.716e-05,2]
[395161462,1764496026279,-500.0,7.716e-05,2]
[395161463,1764496026309,-500.0,7.716e-05,2]
[395161464,1764496026337,-500.0,7.716e-05,2]
[395161465,1764496026365,-500.0,7.716e-05,2]
[395161466,1764496026397,-500.0,7.716e-05,2]
[395161467,1764496026427,-500.0,7.716e-05,2]
[395161468,1764496026457,-310.31240864,7.716e-05,2]
[395161469,1764496026487,-500.0,7.716e-05,2]
[395161470,1764496026677,-500.0,7.716e-05,2]
[395161472,1764496027241,-765.98654852,7.717e-05,2]
[395161473,1764496028394,-40.22123565,7.717e-05,2]
[395161474,1764496028414,-134.01270412,7.723e-05,2]
[395161476,1764496030446,-158.90524772,7.723e-05,2]
[395161477,1764496031928,-162.55440361,7.723e-05,2]
[395161478,1764496033347,-198.70537683,7.723e-05,2]
[395161479,1764496034567,705.88348643,7.646e-05,2]
[395161480,1764496035312,-340.72298743,7.723e-05,2]
[395161482,1764496037300,-3.90071856,7.723e-05,2]
[395161483,1764496037320,-151.0,7.724e-05,2]
[395161484,1764496037340,-0.98665879,7.724e-05,2]
[395161486,1764496039074,-150.01334121,7.724e-05,2]
[395161487,1764496039093,-151.0,7.724e-05,2]
[395161488,1764496039111,-127.92996751,7.724e-05,2]
[395161489,1764496039385,-24.04741922,7.724e-05,2]
[395161490,1764496039410,-254.87488123,7.724e-05,2]
[395161491,1764496041323,-59.5380772,7.724e-05,2]
[395161492,1764496041346,-130.08636248,7.724e-05,2]
[395161493,1764496042900,4709.47439758,7.647e-05,2]
[395161495,1764496045677,-241.75515424,7.724e-05,2]
[395161498,1764496047669,-300.0,7.724e-05,2]
[395161500,1764496051342,883.25953019,7.647e-05,2]
[395161501,1764496058702,258.24484575,7.716e-05,2]
[395161502,1764496058731,162.55440361,7.716e-05,2]
[395161505,1764496064966,500.0,7.716e-05,2]
[395161506,1764496065024,278.92230045,7.716e-05,2]
[395161507,1764496066545,3207.55452242,7.647e-05,2]
[395161508,1764496066568,6792.45547758,7.647e-05,2]
[395161509,1764496067297,362.07872495,7.716e-05,2]
[395161511,1764496074159,241.75515424,7.716e-05,2]
[395161532,1764496086472,201.95022234,7.621e-05,2]
[395161533,1764496089140,230.8002541,7.621e-05,2]
[395161534,1764496089793,1500.0,7.646e-05,2]
[395161535,1764496090318,-230.22350894,7.723e-05,2]
[395161536,1764496091468,360.26477163,7.621e-05,2]
[395161537,1764496092565,-807.25550356,7.723e-05,2]
[395161550,1764496106535,8139.74522837,7.624e-05,2]
[395161552,1764496106559,10000.01,7.624e-05,2]
[395161553,1764496106581,10000.01,7.624e-05,2]
[395161555,1764496116443,-1500.0,7.548e-05,2]
[395161556,1764496116679,-3000.0,7.548e-05,2]
[395161557,1764496119262,-4000.01,7.548e-05,2]
[395161558,1764496119292,-220.17119662,7.623e-05,2]
[395161559,1764496119320,-500.0,7.623e-05,2]
[395161560,1764496119348,-59.64760676,7.623e-05,2]
[395161561,1764496119478,-440.35239324,7.623e-05,2]
[395161562,1764496119507,-423.3680454,7.623e-05,2]
[395161563,1764496148095,-3902.51470072,7.324e-05,2]
[395161564,1764496148116,-3902.51470072,7.398e-05,2]
[395161565,1764496148137,-229.63557194,7.472e-05,2]
[395161566,1764496153086,-70.36442806,7.472e-05,2]
[395161567,1764496153110,-499.70029331,7.473e-05,2]
[395161568,1764496154127,-3343.99236547,7.473e-05,2]
[395161569,1764496159064,-156.31734122,7.473e-05,2]
[395161570,1764496159088,-25258.39690398,7.624e-05,2]
[395161571,1764496162087,-156.31734122,7.398e-05,2]
[395161572,1764496162111,-26696.41443666,7.624e-05,2]
[395161615,1764496171071,-5668.06649737,7.548e-05,2]
[395161633,1764496238333,-657.60911264,7.473e-05,2]
[395161634,1764496238342,-213.0,7.473e-05,2]
[395161635,1764496238352,-657.60911264,7.548e-05,2]
[395161636,1764496238362,-1200.0,7.622e-05,2]
[395161637,1764496238372,-150.72408418,7.623e-05,2]
[395161679,1764496240904,-2e-08,7.623e-05,2]
[395161694,1764496243112,-349.2759158,7.623e-05,2]
[395161695,1764496243121,-330.0865439,7.623e-05,2]
[395161704,1764496246297,-21.96436007,7.623e-05,2]
[395161705,1764496246306,-500.0,7.623e-05,2]
[395161706,1764496246315,-500.0,7.623e-05,2]
[395161707,1764496246325,-1546.41311453,7.624e-05,2]
[395161709,1764496286877,667.7496579,7.373e-05,2]
[395161710,1764496296941,-483.25200194,7.473e-05,2]
[395161711,1764496300183,-407.61590738,7.473e-05,2]
[395161712,1764496302271,-320.80830966,7.473e-05,2]
[395161713,1764496305320,-500.0,7.473e-05,2]
[395161714,1764496307392,-407.61590738,7.473e-05,2]
[395161715,1764496309348,-225.77268511,7.473e-05,2]
[395161717,1764496314321,-184.76818524,7.473e-05,2]
[395161718,1764496319374,-300.0,7.473e-05,2]
[395161719,1764496321899,-244.67642743,7.473e-05,2]
[395161729,1764496365794,1163.0690136,6.978e-05,2]
[395161731,1764496405295,-1704.75307134,7.473e-05,2]
[395161732,1764496417541,-501.84428756,7.511e-05,2]
[395161733,1764496423536,-104.67595659,7.511e-05,2]
[395161734,1764496423558,-487.19389353,7.548e-05,2]
[395161735,1764496425750,-4292.06860195,7.548e-05,2]
[395161736,1764496425771,-223.25070388,7.621e-05,2]
[395161737,1764496425791,-1200.0,7.623e-05,2]
[395161738,1764496425812,-243.6004499,7.623e-05,2]
[395161739,1764496427358,-56.3995501,7.623e-05,2]
[395161740,1764496427384,-201.8085129,7.624e-05,2]
[395161741,1764496429139,-2245.13981014,7.624e-05,2]
[395161742,1764496431934,-300.0,7.624e-05,2]
[395161743,1764496433529,-500.0,7.624e-05,2]
[395161744,1764496434936,-420.61565121,7.624e-05,2]
[395161745,1764496436043,-1111.69852123,7.624e-05,2]
[395161746,1764496438424,-504.48022154,7.815e-05,2]
[395161748,1764496452828,-698.38705155,7.862e-05,2]
[395161751,1764496463081,-336.0554808,7.941e-05,2]
[395161752,1764496464578,-237.45056653,7.941e-05,2]
[395161753,1764496466116,-397.92123921,7.941e-05,2]
[395161754,1764496469018,-4726.30147001,7.941e-05,2]
[395161755,1764496469066,-547.40705998,7.941e-05,2]
[395161756,1764496470423,398.77616918,7.841e-05,2]
[395161758,1764496484448,-300.0,8.02e-05,2]
[395161759,1764496486556,3469.42950796,7.941e-05,2]
[395161760,1764496501283,300.0,8.02e-05,2]
[395161761,1764496501491,-300.0,8.021e-05,2]
[395161762,1764496501518,-500.0,8.021e-05,2]
[395161763,1764496501547,-303.0904359,8.021e-05,2]
[395161764,1764496501575,-186.62227626,8.021e-05,2]
[395161765,1764496501606,-256.03447847,8.021e-05,2]
[395161766,1764496501634,-500.0,8.021e-05,2]
[395161767,1764496501661,-500.0,8.021e-05,2]
[395161768,1764496501688,-407.61590738,8.021e-05,2]
[395161769,1764496501716,-500.0,8.021e-05,2]
[395161770,1764496501747,-500.0,8.021e-05,2]
[395161771,1764496501776,-362.83320516,8.021e-05,2]
[395161772,1764496501803,-500.0,8.021e-05,2]
[395161773,1764496502065,-400.0,8.021e-05,2]
[395161774,1764496502092,-206.79727367,8.021e-05,2]
[395161775,1764496502120,-200.79251912,8.021e-05,2]
[395161776,1764496502148,-167.22988294,8.021e-05,2]
[395161777,1764496502692,300.0,8.02e-05,2]
[395161778,1764496509858,1200.0,8.021e-05,2]
[395161779,1764496524819,-406.46268056,8.022e-05,2]
[395161780,1764496524848,-731.63282501,8.022e-05,2]
[395161781,1764496524879,-1300.6805778,8.022e-05,2]
[395161782,1764496524907,-178.65216212,8.022e-05,2]
[395161783,1764496524934,-2030.28108942,8.022e-05,2]
[395161784,1764496524960,-349.20225169,8.022e-05,2]
[395161785,1764496525518,-321.25231792,8.022e-05,2]
[395161786,1764496525544,-255.56438366,8.022e-05,2]
[395161787,1764496525572,-460.01589059,8.022e-05,2]
[395161788,1764496525601,-817.80602771,8.022e-05,2]
[395161789,1764496525628,-1277.8219183,8.022e-05,2]
[395161790,1764496525658,-1840.06356235,8.022e-05,2]
[395161791,1764496525744,-2504.53095986,8.022e-05,2]
[395161792,1764496525770,-1719.72396944,8.022e-05,2]
[395161793,1764496525847,-1551.5001414,8.022e-05,2]
[395161794,1764496525879,-2756.86670191,8.022e-05,2]
[395161795,1764496525939,-1383.27631338,8.022e-05,2]
[395161796,1764496525966,-2122.16970005,8.022e-05,2]
[395161797,1764496526446,-2989.11797314,8.022e-05,2]
[395161798,1764496526515,-3815.35191544,8.022e-05,2]
[395161799,1764496526582,-2369.30616912,8.022e-05,2]
[395161800,1764496526691,-2647.11600485,8.022e-05,2]
[395161801,1764496526758,-747.10275561,8.022e-05,2]
[395161802,1764496526771,-2369.30616912,8.022e-05,2]
[395161803,1764496526810,-1589.36906557,8.022e-05,2]
[395161804,1764496526838,-201.74659176,8.022e-05,2]
[395161806,1764496561985,230.56753344,8.022e-05,2]
[395161807,1764496564599,359.90150922,8.022e-05,2]
[395161815,1764496640262,212.1316441,7.255e-05,2]
[395161824,1764496768744,178.12,0.0002,30]
[395161829,1764496775741,250.2030881,7.289e-05,2]
[395161838,1764496824102,8947.20622514,8.008e-05,2]
[395161839,1764496824139,10000.01,8.008e-05,2]
[395161840,1764496824173,10000.01,8.008e-05,2]
[395161841,1764496824207,10000.01,8.008e-05,2]
[395161842,1764496824242,3064.52624876,8.008e-05,2]
[395161925,1764497055770,3938.425477,7.239e-05,2]
[395161956,1764497225115,-218.0,8.122e-05,2]
[395161957,1764497225136,-291.69520477,8.134e-05,2]
[395161958,1764497245084,-302.6946345,8.134e-05,2]
[395161959,1764497245109,-190.51880632,8.222e-05,2]
[395161960,1764497247097,-210.02214479,8.222e-05,2]
[395161961,1764497298484,320.59961805,7.977e-05,2]
[395161962,1764497336344,2169.6834196,8.017e-05,2]
[395161998,1764497432249,-54.80149342,8.058e-05,2]
[395161999,1764497432260,-462.20189284,8.058e-05,2]
[395162000,1764497432269,-218.0,8.058e-05,2]
[395162001,1764497432278,-582.50204248,8.099e-05,2]
[395162002,1764497432287,-850.33765262,8.139e-05,2]
[395162014,1764497440557,-0.00971953,8.139e-05,2]
[395162015,1764497440888,-56.63280053,8.139e-05,2]
[395162019,1764497443376,-293.01982732,8.139e-05,2]
[395162020,1764497443386,-301.44077919,8.21e-05,2]
[395162021,1764497443395,-300.0,8.22e-05,2]
[395162022,1764497443404,-1200.0,8.22e-05,2]
[395162023,1764497443414,-1200.0,8.221e-05,2]
[395162024,1764497443424,-774.11138812,8.222e-05,2]
[395162025,1764497443433,-500.0,8.222e-05,2]
[395162026,1764497443443,-500.0,8.222e-05,2]
[395162027,1764497443452,-500.0,8.222e-05,2]
[395162028,1764497443461,-205.89245548,8.222e-05,2]
[395162029,1764497443470,-500.0,8.222e-05,2]
[395162030,1764497443480,-500.0,8.222e-05,2]
[395162031,1764497443489,-651.64744667,8.222e-05,2]
[395162032,1764497443498,-500.0,8.222e-05,2]
[395162033,1764497443507,-500.0,8.222e-05,2]
[395162034,1764497443515,-500.0,8.222e-05,2]
[395162035,1764497443524,-500.0,8.222e-05,2]
[395162036,1764497443532,-500.0,8.222e-05,2]
[395162037,1764497443541,-500.0,8.222e-05,2]
[395162038,1764497443549,-864.107,8.223e-05,2]
[395162039,1764497443558,-18709.78110322,8.223e-05,2]
[395162042,1764497446414,-68.24474215,8.223e-05,2]
[395162043,1764497446430,-1513.24810086,8.223e-05,2]
[395162094,1764497770367,313.84071372,8.022e-05,2]
[395162095,1764497772930,261.5339281,8.022e-05,2]
[395162096,1764497776160,376.2322476,8.022e-05,2]
[395162097,1764497836819,540.26520952,7.961e-05,2]
[395162105,1764498200014,344.1592439,8.022e-05,2]
[395162106,1764498203075,343.24589802,8.022e-05,2]
[395162107,1764498206636,617.84261643,8.022e-05,2]
[395162110,1764498320480,2021.7720742,7.172e-05,2]
[395162111,1764498373499,353.96330318,8.022e-05,2]
[395162112,1764498387647,282.6638121,7.115e-05,2]
[395162114,1764498439095,-1098.38687365,8.042e-05,2]
[395162115,1764498439114,-575.1066353,8.062e-05,2]
[395162116,1764498439134,-218.0,8.082e-05,2]
[395162117,1764498439154,-1716.22949008,8.108e-05,2]
[395162118,1764498439173,-300.0,8.115e-05,2]
[395162119,1764498439192,-300.0,8.116e-05,2]
[395162120,1764498439212,-808.62426212,8.116e-05,2]
[395162121,1764498441929,1098.38687365,7.961e-05,2]
[395162124,1764498474833,955.82104193,8.023e-05,2]
[395162125,1764498474854,244.17895807,8.023e-05,2]
[395162127,1764498482482,300.0,8.023e-05,2]
[395162128,1764498503845,2471.37046572,8.022e-05,2]
[395162129,1764498506013,3363.80980056,8.022e-05,2]
[395162141,1764498508319,3620.65077565,8.022e-05,2]
[395162142,1764498508342,772.89671896,8.022e-05,2]
[395162144,1764498510572,5555.02296432,8.022e-05,2]
[395162146,1764498512094,154.11983763,8.023e-05,2]
[395162159,1764498513535,199.96710672,8.023e-05,2]
[395162160,1764498513574,299.20748088,8.023e-05,2]
[395162161,1764498513602,500.0,8.023e-05,2]
[395162163,1764498513631,500.0,8.023e-05,2]
[395162165,1764498513659,500.0,8.023e-05,2]
[395162166,1764498513854,500.0,8.023e-05,2]
[395162167,1764498513902,500.0,8.023e-05,2]
[395162168,1764498513934,500.0,8.023e-05,2]
[395162169,1764498513963,18.79589149,8.023e-05,2]
[395162170,1764498513983,481.20410851,8.023e-05,2]
[395162171,1764498514012,500.0,8.023e-05,2]
[395162172,1764498514039,221.10881598,8.023e-05,2]
[395162173,1764498514075,500.0,8.023e-05,2]
[395162174,1764498514104,500.0,8.023e-05,2]
[395162175,1764498514132,500.0,8.023e-05,2]
[395162177,1764498514167,500.0,8.023e-05,2]
[395162178,1764498514200,500.0,8.023e-05,2]
[395162179,1764498514264,500.0,8.023e-05,2]
[395162180,1764498514294,500.0,8.023e-05,2]
[395162181,1764498514334,300.0,8.023e-05,2]
[395162182,1764498514362,500.0,8.023e-05,2]
[395162183,1764498514392,500.0,8.023e-05,2]
[395162184,1764498514421,500.0,8.023e-05,2]
[395162185,1764498514460,500.0,8.023e-05,2]
[395162186,1764498514489,500.0,8.023e-05,2]
[395162187,1764498514534,500.0,8.023e-05,2]
[395162188,1764498514562,500.0,8.023e-05,2]
[395162189,1764498514599,500.0,8.023e-05,2]
[395162190,1764498514630,500.0,8.023e-05,2]
[395162191,1764498514664,497.69707551,8.023e-05,2]
[395162192,1764498514687,2.30292449,8.023e-05,2]
[395162193,1764498514717,500.0,8.023e-05,2]
[395162194,1764498514760,500.0,8.023e-05,2]
[395162195,1764498514798,500.0,8.023e-05,2]
[395162196,1764498514837,500.0,8.023e-05,2]
[395162197,1764498514872,500.0,8.023e-05,2]
[395162198,1764498514905,500.0,8.023e-05,2]
[395162199,1764498514948,500.0,8.023e-05,2]
[395162200,1764498514982,500.0,8.023e-05,2]
[395162201,1764498515025,429.77634329,8.023e-05,2]
[395162204,1764498515054,500.0,8.023e-05,2]
[395162205,1764498515099,306.62201998,8.023e-05,2]
[395162206,1764498515138,500.0,8.023e-05,2]
[395162208,1764498515165,500.0,8.023e-05,2]
[395162209,1764498515201,500.0,8.023e-05,2]